[Event "Titled Tuesday Blitz April 18 Late 2023"]
[White "Goltsev, Dmitry"]
[Black "Rastbod, Ali"]
[WhiteFideId "24176710"]
[BlackFideId "12567477"]
[WhiteElo "2336"]
[BlackElo "2248"]
[Result "0-1"]
[Round "10"]
[TimeControl "180+2"]
[Date "2023.04.18"]
[WhiteClock "0:00:15"]
[BlackClock "0:00:06"]

1. e4 {[%clk 0:03:00]}  c6 {[%clk 0:02:59]} 2. d4 {[%clk 0:02:59]}  d5 {[%clk 0:03:00]} 3. Nc3 {[%clk 0:03:00]}  dxe4 {[%clk 0:03:00]} 4. Nxe4 {[%clk 0:03:01]}  Nf6 {[%clk 0:03:01]} 5. Ng3 {[%clk 0:03:00]}  h5 {[%clk 0:03:00]} 6. h4 {[%clk 0:03:00]}  c5 {[%clk 0:03:01]} 7. Nf3 {[%clk 0:02:43]}  Nc6 {[%clk 0:03:01]} 8. c3 {[%clk 0:02:39]}  cxd4 {[%clk 0:03:00]} 9. Nxd4 {[%clk 0:02:39]}  Nxd4 {[%clk 0:02:56]} 10. Qxd4 {[%clk 0:02:39]}  Qxd4 {[%clk 0:02:56]} 11. cxd4 {[%clk 0:02:40]}  Bd7 {[%clk 0:02:56]} 12. f3 {[%clk 0:02:37]}  e6 {[%clk 0:02:48]} 13. Bd2 {[%clk 0:02:36]}  Bd6 {[%clk 0:02:44]} 14. Kf2 {[%clk 0:02:34]}  O-O {[%clk 0:02:29]} 15. Bd3 {[%clk 0:02:32]}  e5 {[%clk 0:02:24]} 16. Bc3 {[%clk 0:02:06]}  Nd5 {[%clk 0:01:41]} 17. Nxh5 {[%clk 0:01:53]}  Nxc3 {[%clk 0:01:33]} 18. bxc3 {[%clk 0:01:54]}  Rac8 {[%clk 0:01:28]} 19. Rac1 {[%clk 0:01:37]}  Ba3 {[%clk 0:01:28]} 20. Rc2 {[%clk 0:01:38]}  Ba4 {[%clk 0:01:28]} 21. Rd2 {[%clk 0:01:34]}  Rxc3 {[%clk 0:00:50]} 22. dxe5 {[%clk 0:01:33]}  Bc5+ {[%clk 0:00:50]} 23. Ke2 {[%clk 0:01:26]}  Re8 {[%clk 0:00:50]} 24. f4 {[%clk 0:01:14]}  f6 {[%clk 0:00:36]} 25. Bg6 {[%clk 0:01:04]}  Re3+ {[%clk 0:00:33]} 26. Kf2 {[%clk 0:00:59]}  R3xe5+ {[%clk 0:00:07]} 27. Kg3 {[%clk 0:00:56]}  Re3+ {[%clk 0:00:08]} 28. Kh2 {[%clk 0:00:56]}  Rf8 {[%clk 0:00:08]} 29. Rc1 {[%clk 0:00:53]}  b6 {[%clk 0:00:07]} 30. Ng3 {[%clk 0:00:37]}  Be8 {[%clk 0:00:07]} 31. h5 {[%clk 0:00:32]}  Bxg6 {[%clk 0:00:06]} 32. hxg6 {[%clk 0:00:33]}  f5 {[%clk 0:00:06]} 33. Rcd1 {[%clk 0:00:32]}  Re6 {[%clk 0:00:06]} 34. Rd5 {[%clk 0:00:29]}  Rxg6 {[%clk 0:00:06]} 35. Nxf5 {[%clk 0:00:29]}  Rgf6 {[%clk 0:00:05]} 36. g4 {[%clk 0:00:24]}  g6 {[%clk 0:00:04]} 37. Nh6+ {[%clk 0:00:21]}  Kg7 {[%clk 0:00:04]} 38. Rd7+ {[%clk 0:00:22]}  Kh8 {[%clk 0:00:03]} 39. Rxa7 {[%clk 0:00:18]}  Rxf4 {[%clk 0:00:03]} 40. Rdd7 {[%clk 0:00:15]}  Rf2+ {[%clk 0:00:04]} 41. Kg3 {[%clk 0:00:15]}  R8f3+ {[%clk 0:00:03]} 42. Kh4 {[%clk 0:00:16]}  Rh2+ {[%clk 0:00:04]} 43. Kg5 {[%clk 0:00:16]}  Be3+ {[%clk 0:00:05]} 44. Kxg6 {[%clk 0:00:15]}  Rxh6# {[%clk 0:00:06]} 0-1


[Site "https://www.chess.com"]

[Event "Titled Tuesday Blitz April 18 Late 2023"]
[White "Makridis, Dimitrios"]
[Black "Pesotskiy, Mikhail"]
[WhiteFideId "25864475"]
[BlackFideId "34164453"]
[WhiteElo "2277"]
[BlackElo "2131"]
[Result "1-0"]
[Round "10"]
[TimeControl "180+2"]
[Date "2023.04.18"]
[WhiteClock "0:00:06"]
[BlackClock "0:00:01"]

1. e4 {[%clk 0:03:00]}  e6 {[%clk 0:02:59]} 2. d4 {[%clk 0:02:55]}  d5 {[%clk 0:02:59]} 3. Nc3 {[%clk 0:02:56]}  Bb4 {[%clk 0:02:58]} 4. e5 {[%clk 0:02:48]}  c5 {[%clk 0:02:57]} 5. a3 {[%clk 0:02:48]}  Bxc3+ {[%clk 0:02:58]} 6. bxc3 {[%clk 0:02:49]}  Qa5 {[%clk 0:02:57]} 7. Bd2 {[%clk 0:02:49]}  Qa4 {[%clk 0:02:58]} 8. Qg4 {[%clk 0:02:45]}  Kf8 {[%clk 0:02:57]} 9. Nf3 {[%clk 0:02:45]}  Ne7 {[%clk 0:02:56]} 10. Be2 {[%clk 0:02:43]}  b6 {[%clk 0:02:54]} 11. h4 {[%clk 0:02:41]}  Ba6 {[%clk 0:02:52]} 12. Bxa6 {[%clk 0:02:39]}  Nxa6 {[%clk 0:02:53]} 13. h5 {[%clk 0:02:40]}  h6 {[%clk 0:02:53]} 14. Ra2 {[%clk 0:02:34]}  Rc8 {[%clk 0:02:45]} 15. O-O {[%clk 0:02:20]}  Kg8 {[%clk 0:02:34]} 16. Qh3 {[%clk 0:01:29]}  Kh7 {[%clk 0:02:01]} 17. Kh1 {[%clk 0:00:59]}  cxd4 {[%clk 0:01:31]} 18. Nxd4 {[%clk 0:00:58]}  Nc5 {[%clk 0:01:30]} 19. Raa1 {[%clk 0:00:46]}  Nc6 {[%clk 0:01:29]} 20. Nxc6 {[%clk 0:00:30]}  Rxc6 {[%clk 0:01:26]} 21. f4 {[%clk 0:00:30]}  Qxc2 {[%clk 0:01:01]} 22. Be3 {[%clk 0:00:26]}  Qf5 {[%clk 0:00:15]} 23. Qxf5+ {[%clk 0:00:18]}  exf5 {[%clk 0:00:16]} 24. Rfd1 {[%clk 0:00:18]}  Rd8 {[%clk 0:00:16]} 25. c4 {[%clk 0:00:18]}  d4 {[%clk 0:00:07]} 26. Bxd4 {[%clk 0:00:18]}  Nb3 {[%clk 0:00:07]} 27. Be3 {[%clk 0:00:16]}  Nxa1 {[%clk 0:00:05]} 28. Rxd8 {[%clk 0:00:16]}  Rxc4 {[%clk 0:00:06]} 29. Rd7 {[%clk 0:00:16]}  Nc2 {[%clk 0:00:06]} 30. Bc1 {[%clk 0:00:09]}  Nd4 {[%clk 0:00:05]} 31. Bb2 {[%clk 0:00:08]}  Ne6 {[%clk 0:00:02]} 32. Rxf7 {[%clk 0:00:07]}  Nxf4 {[%clk 0:00:02]} 33. e6 {[%clk 0:00:06]}  Nxe6 {[%clk 0:00:02]} 34. Re7 {[%clk 0:00:07]}  Re4 {[%clk 0:00:03]} 35. Rxa7 {[%clk 0:00:07]}  Re2 {[%clk 0:00:02]} 36. Bc3 {[%clk 0:00:06]}  Re3 {[%clk 0:00:02]} 37. Bb2 {[%clk 0:00:06]}  Re2 {[%clk 0:00:02]} 38. Bc3 {[%clk 0:00:07]}  Re3 {[%clk 0:00:03]} 39. Bb4 {[%clk 0:00:07]}  Nf4 {[%clk 0:00:02]} 40. Rb7 {[%clk 0:00:06]}  Re6 {[%clk 0:00:01]} 41. Bc3 {[%clk 0:00:05]}  Nxh5 {[%clk 0:00:02]} 42. Bd4 {[%clk 0:00:05]}  Ng3+ {[%clk 0:00:01]} 43. Kh2 {[%clk 0:00:06]}  Nf1+ {[%clk 0:00:01]} 44. Kg1 {[%clk 0:00:06]} 1-0


[Site "https://www.chess.com"]

[Event "Titled Tuesday Blitz April 18 Late 2023"]
[White "Lizak, Peter"]
[Black "Costachi, Mihnea"]
[WhiteFideId "731595"]
[BlackFideId "1217518"]
[WhiteElo "2420"]
[BlackElo "2456"]
[Result "0-1"]
[Round "10"]
[TimeControl "180+2"]
[Date "2023.04.18"]
[WhiteClock "0:00:11"]
[BlackClock "0:00:06"]

1. c4 {[%clk 0:02:55]}  Nf6 {[%clk 0:02:58]} 2. Nc3 {[%clk 0:02:55]}  e5 {[%clk 0:02:55]} 3. Nf3 {[%clk 0:02:54]}  Nc6 {[%clk 0:02:54]} 4. e3 {[%clk 0:02:54]}  Bb4 {[%clk 0:02:55]} 5. Qc2 {[%clk 0:02:54]}  Bxc3 {[%clk 0:02:55]} 6. Qxc3 {[%clk 0:02:54]}  O-O {[%clk 0:02:55]} 7. Nxe5 {[%clk 0:02:44]}  Nxe5 {[%clk 0:02:47]} 8. Qxe5 {[%clk 0:02:44]}  Re8 {[%clk 0:02:48]} 9. Qd4 {[%clk 0:02:34]}  d5 {[%clk 0:02:36]} 10. cxd5 {[%clk 0:02:32]}  Re4 {[%clk 0:02:36]} 11. Qc3 {[%clk 0:02:20]}  Nxd5 {[%clk 0:02:33]} 12. Qc2 {[%clk 0:02:07]}  Bf5 {[%clk 0:02:33]} 13. d3 {[%clk 0:02:04]}  Re6 {[%clk 0:02:20]} 14. a3 {[%clk 0:02:04]}  Nf4 {[%clk 0:02:12]} 15. e4 {[%clk 0:01:58]}  Qd6 {[%clk 0:02:04]} 16. Be3 {[%clk 0:01:52]}  Bg6 {[%clk 0:01:55]} 17. g3 {[%clk 0:01:33]}  Nh5 {[%clk 0:01:55]} 18. Qc5 {[%clk 0:01:21]}  Qa6 {[%clk 0:01:22]} 19. Be2 {[%clk 0:01:11]}  Nf6 {[%clk 0:01:16]} 20. d4 {[%clk 0:00:53]}  Qa4 {[%clk 0:01:13]} 21. e5 {[%clk 0:00:49]}  Ne4 {[%clk 0:00:53]} 22. Qb4 {[%clk 0:00:42]}  Qd7 {[%clk 0:00:37]} 23. Bg4 {[%clk 0:00:25]}  Qd5 {[%clk 0:00:19]} 24. Bxe6 {[%clk 0:00:20]}  fxe6 {[%clk 0:00:20]} 25. f3 {[%clk 0:00:18]}  c5 {[%clk 0:00:15]} 26. Qa4 {[%clk 0:00:12]}  Rd8 {[%clk 0:00:06]} 27. O-O {[%clk 0:00:10]}  cxd4 {[%clk 0:00:04]} 28. fxe4 {[%clk 0:00:10]}  Bxe4 {[%clk 0:00:05]} 29. Qxd4 {[%clk 0:00:06]}  Qxd4 {[%clk 0:00:04]} 30. Bxd4 {[%clk 0:00:07]}  Rxd4 {[%clk 0:00:05]} 31. Rad1 {[%clk 0:00:07]}  Rxd1 {[%clk 0:00:03]} 32. Rxd1 {[%clk 0:00:08]}  Kf7 {[%clk 0:00:03]} 33. Rd7+ {[%clk 0:00:08]}  Kg6 {[%clk 0:00:04]} 34. Kf2 {[%clk 0:00:09]}  Bc6 {[%clk 0:00:04]} 35. Ke3 {[%clk 0:00:09]}  Bxd7 {[%clk 0:00:04]} 36. Kf4 {[%clk 0:00:09]}  Bc6 {[%clk 0:00:04]} 37. h4 {[%clk 0:00:09]}  h6 {[%clk 0:00:05]} 38. g4 {[%clk 0:00:09]}  Kf7 {[%clk 0:00:05]} 39. h5 {[%clk 0:00:10]}  Ke7 {[%clk 0:00:06]} 40. Ke3 {[%clk 0:00:11]}  Kd7 {[%clk 0:00:06]} 41. Kd4 {[%clk 0:00:11]}  Bf3 {[%clk 0:00:06]} 0-1


[Site "https://www.chess.com"]

[Event "Titled Tuesday Blitz April 18 Late 2023"]
[White "Pinheiro, Iung Alicio de O."]
[Black "Baskakov, Egor"]
[WhiteFideId "2104350"]
[BlackFideId "24197866"]
[WhiteElo "2283"]
[BlackElo "2212"]
[Result "0-1"]
[Round "10"]
[TimeControl "180+2"]
[Date "2023.04.18"]
[WhiteClock "0:00:03"]
[BlackClock "0:00:25"]

1. e4 {[%clk 0:03:00]}  c5 {[%clk 0:02:59]} 2. Nf3 {[%clk 0:02:59]}  Nf6 {[%clk 0:02:59]} 3. e5 {[%clk 0:02:55]}  Nd5 {[%clk 0:03:00]} 4. Nc3 {[%clk 0:02:55]}  e6 {[%clk 0:03:00]} 5. Bc4 {[%clk 0:02:55]}  Nb6 {[%clk 0:03:00]} 6. d3 {[%clk 0:02:55]}  d5 {[%clk 0:02:58]} 7. Bb5+ {[%clk 0:02:38]}  Bd7 {[%clk 0:02:57]} 8. a4 {[%clk 0:02:36]}  a6 {[%clk 0:02:53]} 9. Bxd7+ {[%clk 0:02:35]}  N6xd7 {[%clk 0:02:47]} 10. O-O {[%clk 0:02:31]}  Nc6 {[%clk 0:02:47]} 11. Re1 {[%clk 0:02:31]}  g6 {[%clk 0:02:44]} 12. Bg5 {[%clk 0:02:13]}  Qc7 {[%clk 0:02:40]} 13. Bf6 {[%clk 0:02:00]}  Nxf6 {[%clk 0:02:36]} 14. exf6 {[%clk 0:02:00]}  O-O-O {[%clk 0:02:36]} 15. Ne2 {[%clk 0:01:37]}  e5 {[%clk 0:02:10]} 16. Ng3 {[%clk 0:01:22]}  h5 {[%clk 0:02:08]} 17. Qe2 {[%clk 0:01:18]}  h4 {[%clk 0:02:06]} 18. Nf1 {[%clk 0:01:18]}  Bd6 {[%clk 0:02:04]} 19. c4 {[%clk 0:01:17]}  dxc4 {[%clk 0:01:57]} 20. dxc4 {[%clk 0:01:16]}  Nd4 {[%clk 0:01:58]} 21. Nxd4 {[%clk 0:01:15]}  exd4 {[%clk 0:01:59]} 22. Qf3 {[%clk 0:01:12]}  h3 {[%clk 0:01:58]} 23. g3 {[%clk 0:01:12]}  Qc6 {[%clk 0:01:47]} 24. Nd2 {[%clk 0:01:10]}  Qxf3 {[%clk 0:01:44]} 25. Nxf3 {[%clk 0:01:11]}  Rh5 {[%clk 0:01:42]} 26. g4 {[%clk 0:01:07]}  Rhh8 {[%clk 0:01:41]} 27. Ng5 {[%clk 0:01:02]}  Rd7 {[%clk 0:01:27]} 28. Re4 {[%clk 0:01:02]}  Bc7 {[%clk 0:01:06]} 29. Rae1 {[%clk 0:00:56]}  Bd8 {[%clk 0:01:04]} 30. Re8 {[%clk 0:00:21]}  Rxe8 {[%clk 0:01:00]} 31. Rxe8 {[%clk 0:00:21]}  d3 {[%clk 0:00:49]} 32. Re1 {[%clk 0:00:06]}  Bxf6 {[%clk 0:00:45]} 33. Ne4 {[%clk 0:00:06]}  Bxb2 {[%clk 0:00:37]} 34. Nxc5 {[%clk 0:00:05]}  Rd4 {[%clk 0:00:34]} 35. Rd1 {[%clk 0:00:04]}  d2 {[%clk 0:00:33]} 36. Nb3 {[%clk 0:00:04]}  Rxg4+ {[%clk 0:00:29]} 37. Kf1 {[%clk 0:00:03]}  Bc3 {[%clk 0:00:25]} 0-1


[Site "https://www.chess.com"]

[Event "Titled Tuesday Blitz April 18 Late 2023"]
[White "cryptoguru02"]
[Black "Rozman, Levy"]
[BlackFideId "2039877"]
[WhiteElo "2610"]
[BlackElo "2376"]
[Result "0-1"]
[Round "10"]
[TimeControl "180+2"]
[Date "2023.04.18"]
[WhiteClock "0:00:05"]
[BlackClock "0:01:29"]

1. d4 {[%clk 0:03:00]}  d5 {[%clk 0:03:00]} 2. c4 {[%clk 0:03:00]}  e6 {[%clk 0:03:00]} 3. Nc3 {[%clk 0:03:00]}  a6 {[%clk 0:02:56]} 4. cxd5 {[%clk 0:02:59]}  exd5 {[%clk 0:02:56]} 5. Bf4 {[%clk 0:02:58]}  Nf6 {[%clk 0:02:53]} 6. e3 {[%clk 0:02:58]}  Bd6 {[%clk 0:02:52]} 7. Bxd6 {[%clk 0:02:56]}  Qxd6 {[%clk 0:02:53]} 8. Bd3 {[%clk 0:02:56]}  O-O {[%clk 0:02:52]} 9. Nf3 {[%clk 0:02:55]}  Re8 {[%clk 0:02:52]} 10. O-O {[%clk 0:02:48]}  Bg4 {[%clk 0:02:51]} 11. h3 {[%clk 0:02:46]}  Bh5 {[%clk 0:02:50]} 12. Rb1 {[%clk 0:02:28]}  Nbd7 {[%clk 0:02:49]} 13. Be2 {[%clk 0:02:28]}  b5 {[%clk 0:02:46]} 14. Rc1 {[%clk 0:02:25]}  c6 {[%clk 0:02:43]} 15. Nb1 {[%clk 0:02:20]}  Ne4 {[%clk 0:02:41]} 16. Nbd2 {[%clk 0:02:13]}  f5 {[%clk 0:02:40]} 17. Ne1 {[%clk 0:01:58]}  Bg6 {[%clk 0:02:34]} 18. Nd3 {[%clk 0:01:55]}  Rac8 {[%clk 0:02:30]} 19. Nf3 {[%clk 0:01:43]}  c5 {[%clk 0:02:23]} 20. dxc5 {[%clk 0:01:41]}  Ndxc5 {[%clk 0:02:21]} 21. Nxc5 {[%clk 0:01:07]}  Rxc5 {[%clk 0:02:21]} 22. Rxc5 {[%clk 0:01:06]}  Qxc5 {[%clk 0:02:22]} 23. Nd4 {[%clk 0:01:05]}  Rc8 {[%clk 0:02:18]} 24. Bd3 {[%clk 0:01:04]}  Qb4 {[%clk 0:02:13]} 25. Qb3 {[%clk 0:00:47]}  Qd6 {[%clk 0:02:07]} 26. Bxe4 {[%clk 0:00:36]}  fxe4 {[%clk 0:02:08]} 27. Rd1 {[%clk 0:00:36]}  Bf7 {[%clk 0:02:05]} 28. a4 {[%clk 0:00:32]}  b4 {[%clk 0:02:03]} 29. a5 {[%clk 0:00:27]}  h5 {[%clk 0:02:02]} 30. Rd2 {[%clk 0:00:16]}  Kh7 {[%clk 0:01:55]} 31. Rc2 {[%clk 0:00:16]}  Rc4 {[%clk 0:01:56]} 32. Qa4 {[%clk 0:00:13]}  Qc7 {[%clk 0:01:48]} 33. Rxc4 {[%clk 0:00:11]}  dxc4 {[%clk 0:01:47]} 34. Qc2 {[%clk 0:00:11]}  Bd5 {[%clk 0:01:44]} 35. Ne2 {[%clk 0:00:10]}  c3 {[%clk 0:01:42]} 36. bxc3 {[%clk 0:00:10]}  b3 {[%clk 0:01:43]} 37. Qb1 {[%clk 0:00:10]}  Qxa5 {[%clk 0:01:43]} 38. c4 {[%clk 0:00:09]}  Qa2 {[%clk 0:01:38]} 39. Nc3 {[%clk 0:00:07]}  Qxb1+ {[%clk 0:01:37]} 40. Nxb1 {[%clk 0:00:08]}  Bxc4 {[%clk 0:01:38]} 41. Nd2 {[%clk 0:00:08]}  b2 {[%clk 0:01:31]} 42. f3 {[%clk 0:00:05]}  a5 {[%clk 0:01:29]} 0-1


[Site "https://www.chess.com"]

[Event "Titled Tuesday Blitz April 18 Late 2023"]
[White "Kosteniuk, Alexandra"]
[Black "Lewicki, Miroslaw"]
[WhiteFideId "4128125"]
[BlackFideId "1113380"]
[WhiteElo "2453"]
[BlackElo "2212"]
[Result "1-0"]
[Round "10"]
[TimeControl "180+2"]
[Date "2023.04.18"]
[WhiteClock "0:00:14"]
[BlackClock "0:00:20"]

1. e4 {[%clk 0:03:00]}  c5 {[%clk 0:03:00]} 2. c3 {[%clk 0:03:00]}  d6 {[%clk 0:03:00]} 3. d4 {[%clk 0:02:59]}  cxd4 {[%clk 0:03:01]} 4. cxd4 {[%clk 0:02:59]}  g6 {[%clk 0:03:02]} 5. Nc3 {[%clk 0:02:59]}  Bg7 {[%clk 0:03:02]} 6. Nf3 {[%clk 0:02:59]}  Nf6 {[%clk 0:03:03]} 7. h3 {[%clk 0:02:59]}  O-O {[%clk 0:03:03]} 8. Bd3 {[%clk 0:02:58]}  a6 {[%clk 0:03:04]} 9. O-O {[%clk 0:02:58]}  b5 {[%clk 0:03:05]} 10. a4 {[%clk 0:02:53]}  b4 {[%clk 0:03:04]} 11. Ne2 {[%clk 0:02:53]}  Bb7 {[%clk 0:03:04]} 12. Ng3 {[%clk 0:02:53]}  a5 {[%clk 0:03:03]} 13. Bg5 {[%clk 0:02:51]}  Nbd7 {[%clk 0:03:03]} 14. Qd2 {[%clk 0:02:50]}  Qb6 {[%clk 0:03:00]} 15. Bh6 {[%clk 0:02:45]}  e5 {[%clk 0:02:49]} 16. Bxg7 {[%clk 0:02:11]}  Kxg7 {[%clk 0:02:48]} 17. dxe5 {[%clk 0:02:06]}  dxe5 {[%clk 0:02:48]} 18. Qg5 {[%clk 0:01:57]}  Rad8 {[%clk 0:02:41]} 19. Rfe1 {[%clk 0:01:42]}  Kh8 {[%clk 0:02:37]} 20. Qh6 {[%clk 0:01:25]}  Ng8 {[%clk 0:02:35]} 21. Qc1 {[%clk 0:01:18]}  Nc5 {[%clk 0:02:34]} 22. Bc2 {[%clk 0:01:15]}  b3 {[%clk 0:02:23]} 23. Bb1 {[%clk 0:01:15]}  f6 {[%clk 0:02:23]} 24. Qc3 {[%clk 0:01:14]}  Rd6 {[%clk 0:02:18]} 25. Nd2 {[%clk 0:01:10]}  Ba6 {[%clk 0:02:15]} 26. Rc1 {[%clk 0:00:54]}  Rc8 {[%clk 0:02:09]} 27. Nc4 {[%clk 0:00:52]}  Bxc4 {[%clk 0:01:30]} 28. Qxc4 {[%clk 0:00:53]}  Nxe4 {[%clk 0:01:31]} 29. Bxe4 {[%clk 0:00:39]}  Rxc4 {[%clk 0:01:30]} 30. Rxc4 {[%clk 0:00:40]}  Rd2 {[%clk 0:01:31]} 31. Rf1 {[%clk 0:00:37]}  Rxb2 {[%clk 0:01:31]} 32. Rc8 {[%clk 0:00:36]}  Rd2 {[%clk 0:01:26]} 33. Bb1 {[%clk 0:00:35]}  b2 {[%clk 0:01:26]} 34. Ne4 {[%clk 0:00:36]}  Rd8 {[%clk 0:01:21]} 35. Rc5 {[%clk 0:00:33]}  f5 {[%clk 0:01:20]} 36. Rb5 {[%clk 0:00:33]}  Qd4 {[%clk 0:01:15]} 37. Ng5 {[%clk 0:00:34]}  Rc8 {[%clk 0:01:10]} 38. Rb7 {[%clk 0:00:22]}  Nf6 {[%clk 0:00:56]} 39. Nf7+ {[%clk 0:00:22]}  Kg8 {[%clk 0:00:54]} 40. Ba2 {[%clk 0:00:21]}  Rc1 {[%clk 0:00:40]} 41. Ng5+ {[%clk 0:00:20]}  Nd5 {[%clk 0:00:39]} 42. Rb8+ {[%clk 0:00:15]}  Kg7 {[%clk 0:00:35]} 43. Ne6+ {[%clk 0:00:15]}  Kf6 {[%clk 0:00:29]} 44. Nxd4 {[%clk 0:00:16]}  Nc3 {[%clk 0:00:22]} 45. Rb6+ {[%clk 0:00:14]}  Kg5 {[%clk 0:00:20]} 46. Nf3+ {[%clk 0:00:14]}  Kf4 {[%clk 0:00:20]} 47. Rxb2 {[%clk 0:00:14]}  Ne2+ {[%clk 0:00:20]} 48. Rxe2 {[%clk 0:00:14]} 1-0


[Site "https://www.chess.com"]

[Event "Titled Tuesday Blitz April 18 Late 2023"]
[White "Martinez Ramirez, Lennis"]
[Black "mrithyunjay"]
[WhiteFideId "3509079"]
[WhiteElo "2410"]
[BlackElo "2492"]
[Result "0-1"]
[Round "10"]
[TimeControl "180+2"]
[Date "2023.04.18"]
[WhiteClock "0:00:07"]
[BlackClock "0:01:03"]

1. c4 {[%clk 0:03:00]}  g6 {[%clk 0:02:57]} 2. d4 {[%clk 0:03:00]}  Nf6 {[%clk 0:02:57]} 3. Nc3 {[%clk 0:03:00]}  d5 {[%clk 0:02:56]} 4. Nf3 {[%clk 0:02:56]}  Bg7 {[%clk 0:02:56]} 5. Qa4+ {[%clk 0:02:54]}  Nc6 {[%clk 0:02:35]} 6. cxd5 {[%clk 0:02:52]}  Nxd5 {[%clk 0:02:35]} 7. e4 {[%clk 0:02:52]}  Nb6 {[%clk 0:02:34]} 8. Qb3 {[%clk 0:02:41]}  Nxd4 {[%clk 0:02:31]} 9. Nxd4 {[%clk 0:02:41]}  Qxd4 {[%clk 0:02:32]} 10. Be3 {[%clk 0:02:41]}  Qe5 {[%clk 0:02:31]} 11. f4 {[%clk 0:02:28]}  Qa5 {[%clk 0:02:31]} 12. Qb5+ {[%clk 0:02:24]}  Qxb5 {[%clk 0:02:25]} 13. Nxb5 {[%clk 0:02:24]}  Kd8 {[%clk 0:02:17]} 14. O-O-O+ {[%clk 0:02:23]}  Bd7 {[%clk 0:02:17]} 15. e5 {[%clk 0:02:23]}  c6 {[%clk 0:02:16]} 16. Nd4 {[%clk 0:02:22]}  Kc7 {[%clk 0:02:14]} 17. g3 {[%clk 0:02:17]}  Rad8 {[%clk 0:02:12]} 18. Bg2 {[%clk 0:02:16]}  Bg4 {[%clk 0:02:11]} 19. Rde1 {[%clk 0:02:09]}  Nc4 {[%clk 0:02:09]} 20. Bf2 {[%clk 0:02:09]}  h5 {[%clk 0:02:03]} 21. h3 {[%clk 0:02:08]}  Bc8 {[%clk 0:02:03]} 22. b3 {[%clk 0:02:05]}  Nb6 {[%clk 0:02:03]} 23. Rd1 {[%clk 0:02:05]}  a6 {[%clk 0:02:02]} 24. Rd2 {[%clk 0:02:01]}  g5 {[%clk 0:01:59]} 25. Rhd1 {[%clk 0:01:59]}  h4 {[%clk 0:01:58]} 26. gxh4 {[%clk 0:01:38]}  gxf4 {[%clk 0:01:49]} 27. Nb5+ {[%clk 0:01:35]}  axb5 {[%clk 0:01:45]} 28. Rxd8 {[%clk 0:01:34]}  Rxd8 {[%clk 0:01:43]} 29. Bxb6+ {[%clk 0:01:33]}  Kxb6 {[%clk 0:01:43]} 30. Rxd8 {[%clk 0:01:34]}  Be6 {[%clk 0:01:43]} 31. Re8 {[%clk 0:01:02]}  Bxe5 {[%clk 0:01:42]} 32. h5 {[%clk 0:01:02]}  Bf6 {[%clk 0:01:32]} 33. Be4 {[%clk 0:01:01]}  Bg5 {[%clk 0:01:27]} 34. h4 {[%clk 0:01:01]}  Bxh4 {[%clk 0:01:20]} 35. h6 {[%clk 0:01:01]}  f3 {[%clk 0:01:17]} 36. h7 {[%clk 0:00:59]}  f2 {[%clk 0:01:17]} 37. Bg2 {[%clk 0:00:57]}  Bg5+ {[%clk 0:01:16]} 38. Kb2 {[%clk 0:00:42]}  Bf6+ {[%clk 0:01:12]} 39. Ka3 {[%clk 0:00:38]}  c5 {[%clk 0:01:10]} 40. Rxe7 {[%clk 0:00:16]}  b4+ {[%clk 0:01:06]} 41. Ka4 {[%clk 0:00:15]}  Bxe7 {[%clk 0:01:06]} 42. Bc6 {[%clk 0:00:06]}  f1=Q {[%clk 0:01:03]} 43. h8=Q {[%clk 0:00:07]}  Qa6# {[%clk 0:01:03]} 0-1


[Site "https://www.chess.com"]

[Event "Titled Tuesday Blitz April 18 Late 2023"]
[White "Averjanov, Alexey"]
[Black "Petrovic, Aleksa"]
[WhiteFideId "14109867"]
[BlackFideId "967629"]
[WhiteElo "2655"]
[BlackElo "2309"]
[Result "1-0"]
[Round "10"]
[TimeControl "180+2"]
[Date "2023.04.18"]
[WhiteClock "0:00:16"]
[BlackClock "0:00:08"]

1. d4 {[%clk 0:03:00]}  Nf6 {[%clk 0:02:59]} 2. c4 {[%clk 0:03:00]}  e6 {[%clk 0:02:59]} 3. Nf3 {[%clk 0:03:01]}  b6 {[%clk 0:02:59]} 4. g3 {[%clk 0:03:01]}  Ba6 {[%clk 0:02:59]} 5. Nbd2 {[%clk 0:03:00]}  d5 {[%clk 0:02:58]} 6. Qc2 {[%clk 0:02:59]}  Be7 {[%clk 0:02:56]} 7. Bg2 {[%clk 0:02:59]}  O-O {[%clk 0:02:56]} 8. O-O {[%clk 0:03:00]}  c5 {[%clk 0:02:55]} 9. dxc5 {[%clk 0:02:57]}  bxc5 {[%clk 0:02:53]} 10. e3 {[%clk 0:02:57]}  Nc6 {[%clk 0:02:52]} 11. Rd1 {[%clk 0:02:54]}  Qb6 {[%clk 0:02:47]} 12. cxd5 {[%clk 0:02:49]}  Nb4 {[%clk 0:02:35]} 13. Qb3 {[%clk 0:02:42]}  exd5 {[%clk 0:02:32]} 14. Bf1 {[%clk 0:02:36]}  c4 {[%clk 0:02:13]} 15. Qc3 {[%clk 0:02:35]}  Nd3 {[%clk 0:02:11]} 16. Nd4 {[%clk 0:01:59]}  Ng4 {[%clk 0:01:58]} 17. Bxd3 {[%clk 0:01:43]}  Bb4 {[%clk 0:01:53]} 18. Bxh7+ {[%clk 0:01:38]}  Kxh7 {[%clk 0:01:50]} 19. Qc2+ {[%clk 0:01:38]}  Kg8 {[%clk 0:01:47]} 20. N2f3 {[%clk 0:01:30]}  Rac8 {[%clk 0:01:33]} 21. Bd2 {[%clk 0:01:30]}  Bc5 {[%clk 0:01:29]} 22. Bc3 {[%clk 0:01:28]}  Nf6 {[%clk 0:01:23]} 23. Ng5 {[%clk 0:01:23]}  Rfd8 {[%clk 0:01:08]} 24. Qf5 {[%clk 0:01:22]}  Rc7 {[%clk 0:01:02]} 25. Rd2 {[%clk 0:01:15]}  Bc8 {[%clk 0:01:01]} 26. Qf4 {[%clk 0:01:13]}  Bg4 {[%clk 0:00:47]} 27. Nf5 {[%clk 0:01:03]}  Bh5 {[%clk 0:00:36]} 28. Re1 {[%clk 0:00:41]}  Bg6 {[%clk 0:00:30]} 29. Nh6+ {[%clk 0:00:27]}  Kf8 {[%clk 0:00:26]} 30. Ng4 {[%clk 0:00:24]}  Bd6 {[%clk 0:00:20]} 31. Ne5 {[%clk 0:00:21]}  Be4 {[%clk 0:00:13]} 32. Nxe4 {[%clk 0:00:18]}  dxe4 {[%clk 0:00:08]} 33. Red1 {[%clk 0:00:17]}  Rcc8 {[%clk 0:00:08]} 34. Rxd6 {[%clk 0:00:16]} 1-0


[Site "https://www.chess.com"]

[Event "Titled Tuesday Blitz April 18 Late 2023"]
[White "Sabuk, Piotr"]
[Black "Mickiewicz, Piotr"]
[WhiteFideId "1137565"]
[BlackFideId "1114891"]
[WhiteElo "2298"]
[BlackElo "2246"]
[Result "1-0"]
[Round "10"]
[TimeControl "180+2"]
[Date "2023.04.18"]
[WhiteClock "0:00:31"]
[BlackClock "0:00:10"]

1. d4 {[%clk 0:02:59]}  Nf6 {[%clk 0:02:54]} 2. c4 {[%clk 0:02:58]}  e6 {[%clk 0:02:53]} 3. Nf3 {[%clk 0:02:56]}  Bb4+ {[%clk 0:02:53]} 4. Nbd2 {[%clk 0:02:56]}  d5 {[%clk 0:02:49]} 5. g3 {[%clk 0:02:37]}  O-O {[%clk 0:02:47]} 6. Qc2 {[%clk 0:02:32]}  b6 {[%clk 0:02:44]} 7. Bg2 {[%clk 0:02:30]}  Bb7 {[%clk 0:02:44]} 8. cxd5 {[%clk 0:02:24]}  exd5 {[%clk 0:02:43]} 9. O-O {[%clk 0:02:24]}  Re8 {[%clk 0:02:15]} 10. a3 {[%clk 0:02:23]}  Bd6 {[%clk 0:02:13]} 11. Nb1 {[%clk 0:02:22]}  Ne4 {[%clk 0:02:02]} 12. Re1 {[%clk 0:02:08]}  Nd7 {[%clk 0:01:59]} 13. Nc3 {[%clk 0:02:07]}  Nxc3 {[%clk 0:01:56]} 14. bxc3 {[%clk 0:02:04]}  c5 {[%clk 0:01:28]} 15. dxc5 {[%clk 0:01:57]}  bxc5 {[%clk 0:01:20]} 16. c4 {[%clk 0:01:54]}  d4 {[%clk 0:01:18]} 17. Ng5 {[%clk 0:01:53]}  Bxg2 {[%clk 0:01:10]} 18. Qxh7+ {[%clk 0:01:52]}  Kf8 {[%clk 0:01:10]} 19. Qh8+ {[%clk 0:01:36]}  Ke7 {[%clk 0:01:09]} 20. Qxg7 {[%clk 0:01:36]}  Qa5 {[%clk 0:00:55]} 21. Kxg2 {[%clk 0:00:47]}  Qxe1 {[%clk 0:00:52]} 22. Nxf7 {[%clk 0:00:40]}  Rg8 {[%clk 0:00:18]} 23. Bg5+ {[%clk 0:00:38]}  Ke6 {[%clk 0:00:18]} 24. Qh6+ {[%clk 0:00:36]}  Kxf7 {[%clk 0:00:18]} 25. Rxe1 {[%clk 0:00:35]}  Bf8 {[%clk 0:00:10]} 26. Qh7+ {[%clk 0:00:34]}  Rg7 {[%clk 0:00:09]} 27. Qf5+ {[%clk 0:00:34]}  Kg8 {[%clk 0:00:10]} 28. Qd5+ {[%clk 0:00:31]} 1-0


[Site "https://www.chess.com"]